Workbook

Sheet до 6 лет
B3: СОГЛАСОВАНО: | E3: УТВЕРЖДАЮ:
E5: ________________________
D6: Директор М.И. Жинько
B17: ГБУ "Автозаводский детский дом-интернат"
B28: ПРИМЕРНОЕ ЧЕТЫРНАДЦАТИДНЕВНОЕ (ДВУХНЕДЕЛЬНОЕ) МЕНЮ ДЛЯ ВОСПИТАННИКОВ ДО 6 ЛЕТ
B50: 2021 год
B52: МЕНЮ
B54: П Е Р В Ы Й Д Е Н Ь
B55: ЗАВТРАК
A56: № рец | B56: Наименование блюда | C56: Выход | D56: Б | E56: Ж | F56: У | G56: К
A57: 223 | B57: Запеканка из творога с иогуртом | C57: 130 | D57: 19.138 | E57: 11.52 | F57: 14.823 | G57: 239.98
A58: 14 | B58: Масло сливочное | C58: 5 | D58: 0.04 | E58: 3.62 | F58: 0.06 | G58: 33.05
A59: 15 | B59: Сыр | C59: 15 | D59: 3.9 | E59: 3.9 | F59: - | G59: 54
B60: Кофейный напиток с молоком | C60: 200 | D60: 4 | E60: 4.07 | F60: 24.09 | G60: 152.8
B61: Батон | C61: 40 | D61: 3 | E61: 1.16 | F61: 20.56 | G61: 104.68
B62: Итого завтрак | D62: =SUM(D57:D61) -> 30.078 | E62: =SUM(E57:E61) -> 24.27 | F62: =SUM(F57:F61) -> 59.533 | G62: =SUM(G57:G61) -> 584.51
B63: ОБЕД
A64: 75 | B64: Икра свекольная | C64: 50 | D64: 0.76 | E64: 4.045 | F64: 5.125 | G64: 59.17
A65: 87 | B65: Щи со сметаной | C65: 200 | D65: 1.81 | E65: 6.192 | F65: 7.61 | G65: 93.66
A66: 268 | B66: Котлета мясная | C66: 55 | D66: 7.94 | E66: 13.18 | F66: 5.48 | G66: 171.4
A67: 203 | B67: Вермишель отварная | C67: 150 | D67: 5.34 | E67: 6.68 | F67: 35.77 | G67: 204.92
B68: Сок фруктовый, яблочный | C68: 150 | D68: 0.75 | E68: - | F68: 13.65 | G68: 105
B69: Хлеб ржаной | C69: 50 | D69: 3.28 | E69: 0.6 | F69: 16.7 | G69: 85.4
B70: Итого обед | D70: =SUM(D64:D69) -> 19.88 | E70: =SUM(E64:E69) -> 30.697 | F70: =SUM(F64:F69) -> 84.335 | G70: =SUM(G64:G69) -> 719.55
B71: ПОЛДНИК
B72: Зефир | C72: 30 | D72: 0.24 | E72: - | F72: 23.49 | G72: 89.7
B73: Банан | C73: 150 | D73: 1.5 | E73: 0.5 | F73: 21 | G73: 94.5
B74: Чай без сахара | C74: 200 | D74: 0.1 | E74: 0.025 | F74: 0.02 | G74: -
B75: Итого полдник | D75: =SUM(D72:D74) -> 1.84 | E75: =SUM(E72:E74) -> 0.525 | F75: =SUM(F72:F74) -> 44.51 | G75: =SUM(G72:G74) -> 184.2
B76: УЖИН
B77: Огурец свежий | C77: 75 | D77: 1.12 | E77: 0.07 | F77: 5.77 | G77: 27
A78: 228 | B78: Рыба припущенная в молоке | C78: 75 | D78: 6.82 | E78: 8.8 | F78: 4.92 | G78: 122.28
A79: 128 | B79: Картофельное пюре | C79: 150 | D79: 3.23 | E79: 5.04 | F79: 21.02 | G79: 150.35
A80: 349 | B80: Компот из сухофруктов | C80: 150 | D80: 0.38 | E80: - | F80: 23.12 | G80: 90.26
B81: Батон | C81: 30 | D81: 2.25 | E81: 0.87 | F81: 15.42 | G81: 78.51
B82: Итого ужин | D82: =SUM(D77:D81) -> 13.8 | E82: =SUM(E77:E81) -> 14.78 | F82: =SUM(F77:F81) -> 70.25 | G82: =SUM(G77:G81) -> 468.4
B83: ВТОРОЙ УЖИН
A84: 386 | B84: Кефир 2,5% | C84: 150 | D84: 4.2 | E84: 4.81 | F84: 7.06 | G84: 87.19
B85: Гренки/сухарики | C85: 10 | D85: 0.77 | E85: 0.24 | F85: 4.9 | G85: 35.4
B86: Итого второй ужин | D86: =SUM(D84:D85) -> 4.97 | E86: =SUM(E84:E85) -> 5.05 | F86: =SUM(F84:F85) -> 11.96 | G86: =SUM(G84:G85) -> 122.59
B88: Соль за целый день | C88: 8 | D88: - | E88: - | F88: - | G88: -
B90: Итого за день | D90: =D86+D82+D75+D70+D62 -> 70.568 | E90: =E86+E82+E75+E70+E62 -> 75.322 | F90: =F86+F82+F75+F70+F62 -> 270.588 | G90: =G86+G82+G75+G70+G62 -> 2079.25
B95: МЕНЮ
B97: В Т О Р О Й Д Е Н Ь
B98: ЗАВТРАК
B99: Наименование блюда | C99: Выход | D99: Б | E99: Ж | F99: У | G99: К
A100: 182 | B100: Каша пшенная | C100: 150 | D100: 5.64 | E100: 8.5 | F100: 26.81 | G100: 200.72
A101: 14 | B101: Масло сливочное | C101: 5 | D101: 0.04 | E101: 3.62 | F101: 0.06 | G101: 33.05
A102: 16 | B102: Колбаса отварная | C102: 15 | D102: 1.95 | E102: 2.91 | F102: - | G102: 34.05
A103: 378 | B103: Чай с молоком | C103: 200 | D103: 1.49 | E103: 1.615 | F103: 17.37 | G103: 85.85
B104: Яблоко свежее | C104: 150 | D104: 0.4 | E104: 0.4 | F104: 9.76 | G104: 44.48
B105: Батон | C105: 40 | D105: 3 | E105: 1.16 | F105: 20.56 | G105: 104.68
B106: Итого завтрак | D106: =SUM(D100:D105) -> 12.52 | E106: =SUM(E100:E105) -> 18.205 | F106: =SUM(F100:F105) -> 74.56 | G106: =SUM(G100:G105) -> 502.83
B107: ОБЕД
A108: 73 | B108: Икра кабачковая | C108: 50 | D108: 1 | E108: 4.5 | F108: 4.25 | G108: 61
A109: 82 | B109: Борщ со сметаной | C109: 200 | D109: 1.57 | E109: 6.165 | F109: 9.79 | G109: 98.06
A110: 231 | B110: Поджарка рыбная | C110: 95 | D110: 15.33 | E110: 8.86 | F110: 7.84 | G110: 172.44
A111: 304 | B111: Рис отварной | C111: 150 | D111: 3.84 | E111: 5.62 | F111: 38.86 | G111: 223.93
B112: Сок фруктовый, виноградный | C112: 150 | D112: 0.45 | E112: - | F112: 20.7 | G112: 81
B113: Хлеб ржаной | C113: 50 | D113: 3.28 | E113: 0.6 | F113: 16.7 | G113: 85.4
B114: Итого обед | D114: =SUM(D108:D113) -> 25.47 | E114: =SUM(E108:E113) -> 25.745 | F114: =SUM(F108:F113) -> 98.14 | G114: =SUM(G108:G113) -> 721.83
B115: ПОЛДНИК
A116: 210 | B116: Омлет натуральный с зеленым горошком | C116: 110 | D116: 7.19 | E116: 10.26 | F116: 3.81 | G116: 138.61
B117: Молоко топленое | C117: 200 | D117: 5.8 | E117: 8 | F117: 9.4 | G117: 132.8
B118: Итого полдник | D118: =SUM(D116:D117) -> 12.99 | E118: =SUM(E116:E117) -> 18.26 | F118: =SUM(F116:F117) -> 13.21 | G118: =SUM(G116:G117) -> 271.41
B119: УЖИН
B120: Помидоры свежие | C120: 75 | D120: 1.12 | E120: 0.07 | F120: 5.77 | G120: 27
A121: 299 | B121: Суфле из бройлеров-цыплят | C121: 60 | D121: 9.49 | E121: 13.515 | F121: 2.67 | G121: 171.01
A122: 143 | B122: Рагу овощное | C122: 150 | D122: 2.77 | E122: 5.7 | F122: 13.83 | G122: 128.09
A123: 348 | B123: Компот из кураги | C123: 150 | D123: 0.45 | E123: - | F123: 23.15 | G123: 89.9
B124: Батон | C124: 40 | D124: 3 | E124: 1.16 | F124: 20.56 | G124: 104.68
B125: Итого ужин | D125: =SUM(D120:D124) -> 16.83 | E125: =SUM(E120:E124) -> 20.445 | F125: =SUM(F120:F124) -> 65.98 | G125: =SUM(G120:G124) -> 520.68
B126: ВТОРОЙ УЖИН
B127: Ряженка | C127: 150 | D127: 4.2 | E127: 4.8 | F127: 8.29 | G127: 102.35
B128: Печенье | C128: 20 | D128: 1.48 | E128: 1.96 | F128: 14.88 | G128: 83.08
B129: Итого второй ужин | D129: =SUM(D127:D128) -> 5.68 | E129: =SUM(E127:E128) -> 6.76 | F129: =SUM(F127:F128) -> 23.17 | G129: =SUM(G127:G128) -> 185.43
B131: Соль за целый день | C131: 8 | D131: - | E131: - | F131: - | G131: -
B133: Итого за день | D133: =D129+D125+D118+D114+D106 -> 73.49 | E133: =E129+E125+E118+E114+E106 -> 89.415 | F133: =F129+F125+F118+F114+F106 -> 275.06 | G133: =G129+G125+G118+G114+G106 -> 2202.18
B136: МЕНЮ
B138: Т Р Е Т И Й Д Е Н Ь
B139: ЗАВТРАК
B140: Наименование блюда | C140: Выход | D140: Б | E140: Ж | F140: У | G140: К
A141: 219 | B141: Сырники из творога со сгущенным молоком | C141: 120 | D141: 20.33 | E141: 10.85 | F141: 34.71 | G141: 318.78
B142: Масло сливочное | C142: 5 | D142: 0.04 | E142: 3.62 | F142: 0.06 | G142: 33.05
A143: 209 | B143: Яйцо вареное | C143: 1 шт | D143: 5.1 | E143: 4.6 | F143: 0.28 | G143: 62.84
A144: 376 | B144: Чай с лимоном | C144: 200 | D144: 0.13 | E144: 0.02 | F144: 15.2 | G144: 62
B145: Батон | C145: 40 | D145: 3 | E145: 1.16 | F145: 20.56 | G145: 104.68
B146: Итого завтрак | D146: 28.6 | E146: 20.25 | F146: 70.81 | G146: 581.35
B147: ОБЕД
A148: 67 | B148: Винегрет овощной | C148: 50 | D148: 0.76 | E148: 5.07 | F148: 3.97 | G148: 64.65
A149: 103 | B149: Суп картофельный с вермишелью на курином бульоне | C149: 200 | D149: 2.19 | E149: 2.258 | F149: 16.38 | G149: 97.32
A150: 288 | B150: Цыпленок отварной | C150: 50 | D150: 10.55 | E150: 6.8 | F150: - | G150: 103.4
A151: 302 | B151: Каша гречневая рассыпчатая | C151: 150 | D151: 5.84 | E151: 4.77 | F151: 4.16 | G151: 237.4
B152: Апельсин | C152: 150 | D152: 0.9 | E152: 0.2 | F152: 8.1 | G152: 37.8
B153: Сок фруктовый, персиковый | C153: 150 | D153: 0.45 | E153: - | F153: 25.5 | G153: 99
B154: Хлеб ржаной | C154: 50 | D154: 3.28 | E154: 0.6 | F154: 16.7 | G154: 85.4
B155: Итого обед | D155: =SUM(D148:D154) -> 23.97 | E155: =SUM(E148:E153) -> 19.098 | F155: =SUM(F148:F153) -> 58.11 | G155: =SUM(G148:G154) -> 724.97
B156: ПОЛДНИК
B157: Вафли | C157: 25 | D157: 0.8 | E157: 0.7 | F157: 20 | G157: 87.5
B158: Чудо-молоко | C158: 200 | D158: 2.8 | E158: 2 | F158: 7.5 | G158: 67
B159: Итого полдник | D159: =SUM(D157:D158) -> 3.6 | E159: 2.7 | F159: =SUM(F157:F158) -> 27.5 | G159: =SUM(G157:G158) -> 154.5
B160: УЖИН
B161: Сельдь с/с | C161: 15 | D161: 2.5 | E161: 1.25 | F161: - | G161: 21.75
A162: 75 | B162: Икра морковная | C162: 50 | D162: 0.71 | E162: 4.045 | F162: 4.7 | G162: 56.18
A163: 268 | B163: Биточки мясные | C163: 80 | D163: 8.54 | E163: 11.1 | F163: 8.535 | G163: 167.07
A164: 125 | B164: Картофель отварной | C164: 150 | D164: 3.04 | E164: 4.41 | F164: 24.51 | G164: 154.7
A165: 348 | B165: Компот из груши | C165: 150 | D165: 0.12 | E165: 0.09 | F165: 20.81 | G165: 82.92
B166: Батон | C166: 30 | D166: 2.25 | E166: 0.87 | F166: 15.42 | G166: 78.51
B167: Итого ужин | D167: 17.16 | E167: 21.765 | F167: 73.975 | G167: 561.13
B168: ВТОРОЙ УЖИН
B169: Йогурт | C169: 150 | D169: 4.2 | E169: 4.81 | F169: 7.06 | G169: 87.17
B170: Батон | C170: 10 | D170: 0.75 | E170: 0.29 | F170: 5.14 | G170: 26.17
B171: Итого второй ужин | D171: =SUM(D169:D170) -> 4.95 | E171: =SUM(E169:E170) -> 5.1 | F171: =SUM(F169:F170) -> 12.2 | G171: =SUM(G169:G170) -> 113.34
B173: Соль за целый день | C173: 8 | D173: - | E173: - | F173: - | G173: -
B175: Итого за день | D175: 78.28 | E175: 68.92 | F175: =F171+F167+F159+F155+F146 -> 242.595 | G175: 2135.29
B176: МЕНЮ
B178: Ч Е Т В Е Р Т Ы Й Д Е Н Ь
B179: ЗАВТРАК
B180: Наименование блюда | C180: Выход | D180: Б | E180: Ж | F180: У | G180: К
B181: Наименование блюда | C181: Выход | D181: Б | E181: Ж | F181: У | G181: К
A182: 120 | B182: Суп молочный с крупой | C182: 150 | D182: 2.23 | E182: 2.68 | F182: 4.61 | G182: 53.4
A183: 14 | B183: Масло сливочное | C183: 5 | D183: 0.04 | E183: 3.62 | F183: 0.06 | G183: 33.05
A184: 16 | B184: Колбаса отварная | C184: 15 | D184: 1.95 | E184: 2.91 | F184: - | G184: 34.05
A185: 382 | B185: Какао с молоком | C185: 200 | D185: 3.76 | E185: 3.9 | F185: 25.81 | G185: 149
B186: Груша свежая | C186: 150 | D186: 0.4 | E186: 0.3 | F186: 10.3 | G186: 45.62
B187: Батон | C187: 40 | D187: 3 | E187: 1.16 | F187: 20.56 | G187: 104.68
B188: Итого завтрак | D188: 11.38 | E188: 14.57 | F188: 61.34 | G188: 419.8
B189: ОБЕД
B190: Икра кабачковая | C190: 50 | D190: 1 | E190: 4.5 | F190: 4.25 | G190: 61
A191: 101 | B191: Суп картофельный с рыбными фрикадельками | C191: 200 | D191: 7.35 | E191: 5.5 | F191: 12.52 | G191: 139.71
A192: 284 | B192: Запеканка картофельная с мясом | C192: 180 | D192: 16.16 | E192: 21.33 | F192: 33.65 | G192: 390.7
A193: 349 | B193: Сок фруктовый, яблочный | C193: 150 | D193: 0.75 | E193: - | F193: 13.65 | G193: 105
B194: Хлеб ржаной | C194: 50 | D194: 3.28 | E194: 0.6 | F194: 16.7 | G194: 85.4
B195: Итого обед | D195: 28.54 | E195: 31.93 | F195: 80.77 | G195: 781.81
B196: ПОЛДНИК
A197: 466 | B197: Пирожок с рисом и яйцом | C197: 100 | D197: 7.13 | E197: 7.75 | F197: 41.96 | G197: 265.33
B198: Молоко стерилизованное | C198: 200 | D198: 5.8 | E198: 5 | F198: 9.6 | G198: 106.6
B199: Итого полдник | D199: =SUM(D197:D198) -> 12.93 | E199: =SUM(E197:E198) -> 12.75 | F199: =SUM(F197:F198) -> 51.56 | G199: =SUM(G197:G198) -> 371.93
B200: УЖИН
B201: Огурец свежий | C201: 75 | D201: 1.12 | E201: 0.07 | F201: 5.77 | G201: 27
A202: 251 | B202: Поджарка мясная | C202: 65 | D202: 15.09 | E202: 17.72 | F202: 3.03 | G202: 228.13
A203: 139 | B203: Капуста тушеная | C203: 150 | D203: 3.312 | E203: 5.114 | F203: 14.68 | G203: 116.57
A204: 348 | B204: Компот из изюма | C204: 150 | D204: 0.38 | E204: - | F204: 23.12 | G204: 90.26
B205: Батон | C205: 40 | D205: 3 | E205: 1.16 | F205: 20.56 | G205: 104.68
B206: Итого ужин | D206: =SUM(D201:D205) -> 22.902 | E206: =SUM(E201:E205) -> 24.064 | F206: =SUM(F201:F205) -> 67.16 | G206: =SUM(G201:G205) -> 566.64
B207: ВТОРОЙ УЖИН
B208: Простокваша 2,5% | C208: 150 | D208: 4.35 | E208: 3.75 | F208: 5.97 | G208: 73.66
B209: Пряники | C209: 20 | D209: 0.96 | E209: 0.56 | F209: 15.54 | G209: 70
B210: Итого второй ужин | D210: =SUM(D208:D209) -> 5.31 | E210: =SUM(E208:E209) -> 4.31 | F210: =SUM(F208:F209) -> 21.51 | G210: =SUM(G208:G209) -> 143.66
B212: Соль за целый день | C212: 8 | D212: - | E212: - | F212: - | G212: -
B214: Итого за день | D214: =D210+D206+D199+D195+D188 -> 81.062 | E214: 87.62 | F214: =F210+F206+F199+F195+F188 -> 282.34 | G214: =G210+G206+G199+G195+G188 -> 2283.84
B215: Наименование блюда | C215: Выход | D215: Б | E215: Ж | F215: У | G215: К
B248: МЕНЮ
B250: П Я Т Ы Й Д Е Н Ь
B251: ЗАВТРАК
B252: Наименование блюда | C252: Выход | D252: Б | E252: Ж | F252: У | G252: К
B253: МЕНЮ
B255: П Я Т Ы Й Д Е Н Ь
B257: ЗАВТРАК
B258: Наименование блюда | C258: Выход | D258: Б | E258: Ж | F258: У | G258: К
A259: 181 | B259: Каша манная | C259: 150 | D259: 4.64 | E259: 7.84 | F259: 22.41 | G259: 178.9
A260: 14 | B260: Масло сливочное | C260: 5 | D260: 0.04 | E260: 3.62 | F260: 0.06 | G260: 33.05
A261: 15 | B261: Сыр | C261: 15 | D261: 3.9 | E261: 3.9 | F261: - | G261: 54
A262: 382 | B262: Кофейный напиток с молоком | C262: 200 | D262: 4 | E262: 4.07 | F262: 24.09 | G262: 152.8
B263: Яблоко свежее | C263: 150 | D263: 0.4 | E263: 0.4 | F263: 9.76 | G263: 44.48
B264: Батон | C264: 40 | D264: 3 | E264: 1.16 | F264: 20.56 | G264: 104.68
B265: Итого завтрак | D265: =SUM(D259:D264) -> 15.98 | E265: =SUM(E259:E264) -> 20.99 | F265: =SUM(F259:F264) -> 76.88 | G265: =SUM(G259:G264) -> 567.91
B266: ОБЕД
A267: 47 | B267: Салат из квашеной капусты | C267: 50 | D267: 0.77 | E267: 2.5 | F267: 3.9 | G267: 41.9
A268: 96 | B268: Рассольник "Ленинградский" со сметаной | C268: 200 | D268: 2.06 | E268: 6.3 | F268: 14.01 | G268: 123
A269: 260 | B269: Гуляш мясной | C269: 100 | D269: 15.075 | E269: 19.595 | F269: 1.281 | G269: 247.01
A270: 202 | B270: Рожки отварные | C270: 150 | D270: 5.34 | E270: 3.68 | F270: 35.77 | G270: 204.92
B271: Сок фруктовый, виноградный | C271: 150 | D271: 0.45 | E271: - | F271: 20.7 | G271: 81
B272: Хлеб ржаной | C272: 50 | D272: 3.28 | E272: 0.6 | F272: 16.7 | G272: 85.4
B273: Итого обед | D273: =SUM(D267:D272) -> 26.975 | E273: =SUM(E267:E272) -> 32.675 | F273: =SUM(F267:F272) -> 92.361 | G273: =SUM(G267:G272) -> 783.23
B274: ПОЛДНИК
A275: 420 | B275: Колбасные изделия, запеченные в тесте | C275: 75 | D275: 7.968 | E275: 7.38 | F275: 30.32 | G275: 219.44
A276: 385 | B276: Молоко кипяченое | C276: 200 | D276: 5.8 | E276: 6.4 | F276: 9.4 | G276: 118.4
B277: Итого полдник | D277: =SUM(D275:D276) -> 13.768 | E277: =SUM(E275:E276) -> 13.78 | F277: =SUM(F275:F276) -> 39.72 | G277: =SUM(G275:G276) -> 337.84
B278: УЖИН
A279: 240 | B279: Фрикадельки рыбные | C279: 80 | D279: 7.56 | E279: 2.82 | F279: 7.945 | G279: 86.28
A280: 126 | B280: Картофель отварной с луком | C280: 150 | D280: 4.38 | E280: 9.67 | F280: 27.03 | G280: 185.58
A281: 350 | B281: Кисель из кураги | C281: 150 | D281: 0.67 | E281: 0.045 | F281: 24.56 | G281: 115.95
B282: Батон | C282: 40 | D282: 3 | E282: 1.16 | F282: 20.56 | G282: 104.68
B283: Итого ужин | D283: 15.61 | E283: 13.695 | F283: 80.095 | G283: 492.49
B284: ВТОРОЙ УЖИН
B285: Снежок | C285: 150 | D285: 0.1 | E285: 0.3 | F285: 6.89 | G285: 37.95
B286: Вафли | C286: 20 | D286: 0.64 | E286: 0.56 | F286: 16 | G286: 70
B287: Итого второй ужин | D287: =SUM(D285:D286) -> 0.74 | E287: =SUM(E285:E286) -> 0.86 | F287: =SUM(F285:F286) -> 22.89 | G287: =SUM(G285:G286) -> 107.95
B289: Соль за целый день | C289: 8 | D289: - | E289: - | F289: - | G289: -
B291: Итого за день | D291: =D287+D283+D277+D273+D265 -> 73.073 | E291: =E287+E283+E277+E273+E265 -> 82 | F291: =F287+F283+F277+F273+F265 -> 311.946 | G291: =G287+G283+G277+G273+G265 -> 2289.42
B294: МЕНЮ
B296: Ш Е С Т О Й Д Е Н Ь
B298: ЗАВТРАК
B299: Наименование блюда | C299: Выход | D299: Б | E299: Ж | F299: У | G299: К
B322: МЕНЮ
B324: ЗАВТРАК
B325: Наименование блюда | C325: Выход | D325: Б | E325: Ж | F325: У | G325: К
A326: 224 | B326: Запеканка из творога с морковью | C326: 170 | D326: 20.99 | E326: 14.09 | F326: 33.33 | G326: 345.28
A327: 14 | B327: Масло сливочное | C327: 5 | D327: 0.04 | E327: 3.62 | F327: 0.06 | G327: 33.05
... 422 more rows

Sheet 7-10 лет
B3: СОГЛАСОВАНО: | E3: УТВЕРЖДАЮ:
E5: ________________________
E6: Директор М.И. Жинько
B17: ГБУ "Автозаводский детский дом-интернат"
B28: ПРИМЕРНОЕ ЧЕТЫРНАДЦАТИДНЕВНОЕ (ДВУХНЕДЕЛЬНОЕ) МЕНЮ ДЛЯ ВОСПИТАННИКОВ С 7 ДО 10 ЛЕТ
B50: 2021 год
B51: МЕНЮ
B53: П Е Р В Ы Й Д Е Н Ь
B55: ЗАВТРАК
A56: № рец | B56: Наименование блюда | C56: Выход | D56: Б | E56: Ж | F56: У | G56: К
A57: 223 | B57: Запеканка из творога с йогуртом | C57: 180 | D57: 28.166 | E57: 16.27 | F57: 23.556 | G57: 356.03
A58: 15 | B58: Сыр | C58: 25 | D58: 6.5 | E58: 6.5 | F58: - | G58: 90
A59: 14 | B59: Масло сливочное | C59: 10 | D59: 0.08 | E59: 7.25 | F59: 0.13 | G59: 66.1
A60: 376 | B60: Кофейный напиток с молоком | C60: 200 | D60: 4 | E60: 4.07 | F60: 24.09 | G60: 152.8
B61: Батон | C61: 75 | D61: 5.63 | E61: 2.18 | F61: 38.58 | G61: 196.28
B62: Итого завтрак | D62: =SUM(D57:D61) -> 44.376 | E62: =SUM(E57:E61) -> 36.27 | F62: =SUM(F57:F61) -> 86.356 | G62: =SUM(G57:G61) -> 861.21
B63: ОБЕД
A64: 75 | B64: Икра свекольная | C64: 75 | D64: 1.13 | E64: 5.669 | F64: 7.69 | G64: 85.34
A65: 87 | B65: Щи со сметаной на м/к бульоне | C65: 250 | D65: 1.65 | E65: 7.192 | F65: 9.41 | G65: 111.85
A66: 268 | B66: Котлета мясная | C66: 80 | D66: 11.89 | E66: 18.46 | F66: 8.19 | G66: 245.07
A67: 203 | B67: Вермишель отварная | C67: 150 | D67: 5.34 | E67: 6.68 | F67: 35.77 | G67: 204.92
B68: Сок фруктовый, яблочный | C68: 200 | D68: 1 | E68: - | F68: 18.2 | G68: 140
B69: Хлеб ржаной | C69: 80 | D69: 5.28 | E69: 0.96 | F69: 26.72 | G69: 136.64
B70: Итого обед | D70: =SUM(D64:D69) -> 26.29 | E70: =SUM(E64:E69) -> 38.961 | F70: =SUM(F64:F69) -> 105.98 | G70: =SUM(G64:G69) -> 923.82
B71: ПОЛДНИК
B72: Зефир | C72: 30 | D72: 0.24 | E72: - | F72: 23.49 | G72: 89.7
B73: Банан | C73: 200 | D73: 2.77 | E73: 0.92 | F73: 38.85 | G73: 174.83
B74: Чай без сахара | C74: 200 | D74: 0.1 | E74: 0.025 | F74: 0.02 | G74: -
B75: Итого полдник | D75: =SUM(D72:D74) -> 3.11 | E75: =SUM(E73:E74) -> 0.945 | F75: =SUM(F72:F74) -> 62.36 | G75: =SUM(G72:G74) -> 264.53
B76: УЖИН
B77: Огурец свежий | C77: 75 | D77: 1.12 | E77: 0.07 | F77: 5.77 | G77: 27
A78: 228 | B78: Рыба припущенная в молоке | C78: 100 | D78: 8.98 | E78: 11.11 | F78: 6.35 | G78: 160.95
A79: 128 | B79: Картофельное пюре | C79: 200 | D79: 4.32 | E79: 6.72 | F79: 29.37 | G79: 200.47
A80: 349 | B80: Компот из сухофруктов | C80: 200 | D80: 0.5 | E80: - | F80: 30.86 | G80: 120.34
B81: Батон | C81: 65 | D81: 4.88 | E81: 1.89 | F81: 33.44 | G81: 170.11
B82: Итого ужин | D82: =SUM(D77:D81) -> 19.8 | E82: =SUM(E77:E81) -> 19.79 | F82: =SUM(F77:F81) -> 105.79 | G82: =SUM(G77:G81) -> 678.87
B83: ВТОРОЙ УЖИН
A84: 386 | B84: Кефир 2,5% | C84: 200 | D84: 5.6 | E84: 6.41 | F84: 9.42 | G84: 116.24
B85: Гренки/сухарики | C85: 10 | D85: 0.77 | E85: 0.24 | F85: 4.9 | G85: 35.4
B86: Итого второй ужин | D86: =SUM(D84:D85) -> 6.37 | E86: =SUM(E84:E85) -> 6.65 | F86: =SUM(F84:F85) -> 14.32 | G86: =SUM(G84:G85) -> 151.64
B88: Соль за целый день | C88: 5 | D88: - | E88: - | F88: - | G88: -
B90: Итого за день | D90: =D86+D82+D75+D70+D62 -> 99.946 | E90: =E86+E82+E75+E70+E62 -> 102.616 | F90: =F86+F82+F75+F70+F62 -> 374.806 | G90: =G86+G82+G75+G70+G62 -> 2880.07
B94: МЕНЮ
B96: В Т О Р О Й Д Е Н Ь
B98: ЗАВТРАК
B99: Наименование блюда | C99: Выход | D99: Б | E99: Ж | F99: У | G99: К
A100: 182 | B100: Каша пшенная | C100: 200 | D100: 7.49 | E100: 9.63 | F100: 34.71 | G100: 248.22
A101: 14 | B101: Масло сливочное | C101: 10 | D101: 0.08 | E101: 7.25 | F101: 0.13 | G101: 66.1
A102: 16 | B102: Колбаса отварная | C102: 35 | D102: 4.55 | E102: 6.79 | F102: - | G102: 79.45
A103: 378 | B103: Чай с молоком | C103: 200 | D103: 1.49 | E103: 1.62 | F103: 17.37 | G103: 85.85
B104: Яблоко свежее | C104: 200 | D104: 0.74 | E104: 0.74 | F104: 18.06 | G104: 82.29
B105: Батон | C105: 75 | D105: 5.63 | E105: 2.18 | F105: 38.58 | G105: 196.28
B106: Итого завтрак | D106: =SUM(D100:D105) -> 19.98 | E106: =SUM(E100:E105) -> 28.21 | F106: =SUM(F100:F105) -> 108.85 | G106: =SUM(G100:G105) -> 758.19
B107: ОБЕД
B108: Икра кабачковая | C108: 75 | D108: 1.5 | E108: 6.75 | F108: 6.37 | G108: 91.5
A109: 82 | B109: Борщ со сметаной | C109: 250 | D109: 1.88 | E109: 7.153 | F109: 11.67 | G109: 119.62
A110: 231 | B110: Поджарка рыбная | C110: 130 | D110: 20.58 | E110: 14.15 | F110: 11.06 | G110: 253.87
A111: 304 | B111: Рис отварной | C111: 150 | D111: 3.84 | E111: 5.62 | F111: 38.86 | G111: 223.93
B112: Сок фруктовый, виноградный | C112: 200 | D112: 0.6 | E112: - | F112: 27.6 | G112: 108
B113: Хлеб ржаной | C113: 80 | D113: 5.28 | E113: 0.96 | F113: 26.72 | G113: 136.64
B114: Итого обед | D114: =SUM(D108:D113) -> 33.68 | E114: =SUM(E108:E113) -> 34.633 | F114: =SUM(F108:F113) -> 122.28 | G114: =SUM(G108:G113) -> 933.56
B115: ПОЛДНИК
A116: 210 | B116: Омлет натуральный | C116: 110 | D116: 11.08 | E116: 17.45 | F116: 2.09 | G116: 209.18
B117: Молоко топленое | C117: 200 | D117: 5.8 | E117: 8 | F117: 9.4 | G117: 132.8
B118: Итого полдник | D118: =SUM(D116:D117) -> 16.88 | E118: =SUM(E116:E117) -> 25.45 | F118: =SUM(F116:F117) -> 11.49 | G118: =SUM(G116:G117) -> 341.98
B119: УЖИН
B120: Помидоры свежие | C120: 75 | D120: 1.12 | E120: 0.07 | F120: 5.77 | G120: 27
A121: 299 | B121: Суфле из бройлеров-цыплят | C121: 60 | D121: 9.49 | E121: 13.515 | F121: 2.67 | G121: 171.01
A122: 143 | B122: Рагу овощное | C122: 200 | D122: 3.72 | E122: 7.6 | F122: 18.62 | G122: 170.82
A123: 348 | B123: Компот из кураги | C123: 200 | D123: 0.5 | E123: - | F123: 30.86 | G123: 120.34
B124: Батон | C124: 75 | D124: 5.63 | E124: 2.18 | F124: 38.58 | G124: 196.28
B125: Итого ужин | D125: =SUM(D120:D124) -> 20.46 | E125: =SUM(E120:E124) -> 23.365 | F125: =SUM(F120:F124) -> 96.5 | G125: =SUM(G120:G124) -> 685.45
B126: ВТОРОЙ УЖИН
A127: 386 | B127: Ряженка | C127: 200 | D127: 5.6 | E127: 6.41 | F127: 11.05 | G127: 136.46
B128: Печенье | C128: 10 | D128: 0.74 | E128: 0.98 | F128: 7.44 | G128: 41.54
B129: Итого второй ужин | D129: =SUM(D127:D128) -> 6.34 | E129: =SUM(E127:E128) -> 7.39 | F129: =SUM(F127:F128) -> 18.49 | G129: =SUM(G127:G128) -> 178
B131: Соль за целый день | C131: 5 | D131: - | E131: - | F131: - | G131: -
B133: Итого за день | D133: =D129+D125+D118+D114+D106 -> 97.34 | E133: =E129+E125+E118+E114+E106 -> 119.048 | F133: =F129+F125+F118+F114+F106 -> 357.61 | G133: =G129+G125+G118+G114+G106 -> 2897.18
B135: МЕНЮ
B137: Т Р Е Т И Й Д Е Н Ь
B139: ЗАВТРАК
B140: Наименование блюда | C140: Выход | D140: Б | E140: Ж | F140: У | G140: К
A141: 219 | B141: Сырники из творога со сгущенным молоком | C141: 170 | D141: 29.91 | E141: 16.68 | F141: 43.18 | G141: 458.03
A142: 14 | B142: Масло сливочное | C142: 10 | D142: 0.08 | E142: 7.25 | F142: 0.13 | G142: 66.1
A143: 209 | B143: Яйцо вареное | C143: 1 шт | D143: 5.1 | E143: 4.6 | F143: 0.28 | G143: 62.84
A144: 376 | B144: Чай с лимоном | C144: 200 | D144: 0.13 | E144: 0.02 | F144: 15.2 | G144: 62
B145: Батон | C145: 75 | D145: 5.63 | E145: 2.18 | F145: 38.58 | G145: 196.28
B146: Итого завтрак | D146: 40.85 | E146: 30.73 | F146: 97.37 | G146: 845.25
B147: ОБЕД
A148: 67 | B148: Винегрет овощной | C148: 75 | D148: 1.1 | E148: 7.607 | F148: 5.82 | G148: 96.42
A149: 103 | B149: Суп картофельный с вермишелью на курином бульоне | C149: 250 | D149: 2.95 | E149: 2.85 | F149: 21.9 | G149: 128.39
A150: 288 | B150: Цыпленок отварн. | C150: 75 | D150: 15.82 | E150: 10.2 | F150: - | G150: 155.1
A151: 302 | B151: Каша гречневая рассыпчатая | C151: 150 | D151: 5.84 | E151: 4.77 | F151: 4.16 | G151: 237.4
B152: Груша свежая | C152: 200 | D152: 1.66 | E152: 0.37 | F152: 14.98 | G152: 69.93
B153: Сок фруктовый, персиковый | C153: 200 | D153: 0.6 | E153: - | F153: 34 | G153: 132
B154: Хлеб ржаной | C154: 80 | D154: 5.28 | E154: 0.96 | F154: 26.72 | G154: 136.64
B155: Итого обед | D155: =SUM(D148:D154) -> 33.25 | E155: =SUM(E148:E154) -> 26.757 | F155: =SUM(F148:F154) -> 107.58 | G155: =SUM(G148:G154) -> 955.88
B156: ПОЛДНИК
B157: Желе из апельсинов | C157: 100 | D157: 2.65 | E157: 0.02 | F157: 12.28 | G157: 60.4
B158: Вафли | C158: 10 | D158: 0.32 | E158: 0.28 | F158: 8 | G158: 35
B159: Чудо-молоко | C159: 200 | D159: 2.8 | E159: 2 | F159: 7.5 | G159: 67
B160: Итого полдник | D160: 8.89 | E160: 2.3 | F160: 27.78 | G160: 162.4
B161: УЖИН
B162: Сельдь с/с | C162: 25 | D162: 4.25 | E162: 2.12 | F162: - | G162: 36.25
A163: 75 | B163: Икра морковная | C163: 75 | D163: 1.03 | E163: 5.669 | F163: 7.18 | G163: 81.32
A164: 268 | B164: Биточки мясные | C164: 105 | D164: 12.29 | E164: 16.41 | F164: 9.845 | G164: 234.06
A165: 125 | B165: Картофель отварной | C165: 200 | D165: 4.06 | E165: 5.88 | F165: 32.69 | G165: 206.27
A166: 348 | B166: Компот из груши | C166: 200 | D166: 0.16 | E166: 0.12 | F166: 27.75 | G166: 110.56
B167: Батон | C167: 55 | D167: 4.13 | E167: 1.6 | F167: 28.3 | G167: 143.94
B168: Итого ужин | D168: =SUM(D162:D167) -> 25.92 | E168: 31.8 | F168: 105.76 | G168: =SUM(G162:G167) -> 812.4
B169: ВТОРОЙ УЖИН
B170: Йогурт | C170: 200 | D170: 5.6 | E170: 6.41 | F170: 9.41 | G170: 116.22
B171: Батон | C171: 20 | D171: 1.5 | E171: 0.58 | F171: 10.28 | G171: 52.34
B172: Итого второй ужин | D172: =SUM(D170:D171) -> 7.1 | E172: =SUM(E170:E171) -> 6.99 | F172: =SUM(F170:F171) -> 19.69 | G172: =SUM(G170:G171) -> 168.56
B174: Соль за целый день | C174: 5 | D174: - | E174: - | F174: - | G174: -
B176: Итого за день | D176: 116.01 | E176: 98.57 | F176: 358.18 | G176: 2944.49
B179: МЕНЮ
B181: Ч Е Т В Е Р Т Ы Й Д Е Н Ь
B183: ЗАВТРАК
B184: Наименование блюда | C184: Выход | D184: Б | E184: Ж | F184: У | G184: К
A185: 120 | B185: Суп молочный с крупой | C185: 200 | D185: 2.97 | E185: 3.57 | F185: 6.14 | G185: 71.2
A186: 14 | B186: Масло сливочное | C186: 10 | D186: 0.08 | E186: 7.25 | F186: 0.13 | G186: 66.1
A187: 16 | B187: Колбаса отварная | C187: 35 | D187: 4.55 | E187: 6.79 | F187: - | G187: 79.45
A188: 382 | B188: Какао с молоком | C188: 200 | D188: 3.76 | E188: 3.9 | F188: 25.81 | G188: 149
B189: Апельсин | C189: 200 | D189: 0.74 | E189: 0.55 | F189: 19.06 | G189: 84.4
B190: Батон | C190: 75 | D190: 5.63 | E190: 2.18 | F190: 38.58 | G190: 196.28
B191: Итого завтрак | D191: 17.73 | E191: 24.24 | F191: 89.72 | G191: 646.43
B192: ОБЕД
B193: Икра кабачковая | C193: 75 | D193: 1.5 | E193: 6.75 | F193: 6.37 | G193: 91.5
A194: 101 | B194: Суп картофельный с рыбными фрикадельками | C194: 250 | D194: 9.18 | E194: 6.88 | F194: 15.65 | G194: 174.64
A195: 284 | B195: Запеканка картофельная с мясом | C195: 250 | D195: 18.63 | E195: 26.49 | F195: 42.3 | G195: 487.07
B196: Сок фруктовый, яблочный | C196: 200 | D196: 1 | E196: - | F196: 18.2 | G196: 140
B197: Хлеб ржаной | C197: 80 | D197: 5.28 | E197: 0.96 | F197: 26.72 | G197: 136.64
B198: Итого обед | D198: 35.59 | E198: 41.08 | F198: 109.24 | G198: 1029.85
B199: ПОЛДНИК
A200: 466 | B200: Пирожок с рисом и яйцом | C200: 50 | D200: 3.66 | E200: 3.18 | F200: 20.96 | G200: 126.61
A201: 350 | B201: Кисель из клюквы | C201: 200 | D201: 0.169 | E201: 0.1 | F201: 29.9 | G201: 117.4
B202: Итого полдник | D202: =SUM(D200:D201) -> 3.829 | E202: =SUM(E200:E201) -> 3.28 | F202: =SUM(F200:F201) -> 50.86 | G202: =SUM(G200:G201) -> 244.01
B203: УЖИН
B204: Огурец свежий | C204: 75 | D204: 1.12 | E204: 0.07 | F204: 5.77 | G204: 27
A205: 251 | B205: Поджарка мясная | C205: 65 | D205: 15.09 | E205: 17.72 | F205: 3.03 | G205: 228.13
A206: 139 | B206: Капуста тушеная | C206: 200 | D206: 4.42 | E206: 6.83 | F206: 19.57 | G206: 155.41
A207: 348 | B207: Компот из изюма | C207: 200 | D207: 0.5 | E207: - | F207: 30.86 | G207: 120.34
B208: Батон | C208: 75 | D208: 5.63 | E208: 2.18 | F208: 38.58 | G208: 196.28
B209: Итого ужин | D209: =SUM(D204:D208) -> 26.76 | E209: =SUM(E204:E208) -> 26.8 | F209: =SUM(F204:F208) -> 97.81 | G209: =SUM(G204:G208) -> 727.16
B210: ВТОРОЙ УЖИН
A211: 386 | B211: Простокваша 2,5% | C211: 200 | D211: 5.8 | E211: 5 | F211: 7.95 | G211: 98.21
B212: Пряники | C212: 10 | D212: 0.63 | E212: 0.21 | F212: 7.56 | G212: 34.65
B213: Итого второй ужин | D213: =SUM(D211:D212) -> 6.43 | E213: =SUM(E211:E212) -> 5.21 | F213: =SUM(F211:F212) -> 15.51 | G213: =SUM(G211:G212) -> 132.86
B215: Соль за целый день | C215: 5 | D215: - | E215: - | F215: - | G215: -
B217: Итого за день | D217: =D213+D209+D202+D198+D191 -> 90.339 | E217: =E213+E209+E202+E198+E191 -> 100.61 | F217: =F213+F209+F202+F198+F191 -> 363.14 | G217: 2780.31
B221: МЕНЮ
B223: П Я Т Ы Й Д Е Н Ь
B225: ЗАВТРАК
B226: Наименование блюда | C226: Выход | D226: Б | E226: Ж | F226: У | G226: К
A227: 181 | B227: Каша манная | C227: 200 | D227: 6.66 | E227: 8.86 | F227: 35.56 | G227: 253.25
A228: 14 | B228: Масло сливочное | C228: 10 | D228: 0.08 | E228: 7.25 | F228: 0.13 | G228: 66.1
A229: 15 | B229: Сыр | C229: 25 | D229: 6.5 | E229: 6.5 | F229: - | G229: 90
A230: 376 | B230: Кофейный напиток с молоком | C230: 200 | D230: 4 | E230: 4.07 | F230: 24.09 | G230: 152.8
B231: Яблоко свежее | C231: 200 | D231: 0.74 | E231: 0.74 | F231: 18.06 | G231: 82.29
B232: Батон | C232: 75 | D232: 5.63 | E232: 2.18 | F232: 38.58 | G232: 196.28
B233: Итого завтрак | D233: =SUM(D227:D232) -> 23.61 | E233: =SUM(E227:E232) -> 29.6 | F233: =SUM(F227:F232) -> 116.42 | G233: =SUM(G227:G232) -> 840.72
B234: ОБЕД
A235: 47 | B235: Салат из квашеной капусты | C235: 75 | D235: 1.15 | E235: 3.75 | F235: 5.85 | G235: 63.76
A236: 96 | B236: Рассольник "Ленинградский" со сметаной | C236: 250 | D236: 2.49 | E236: 7.41 | F236: 17.45 | G236: 148.6
A237: 260 | B237: Гуляш мясной | C237: 100 | D237: 15.075 | E237: 19.595 | F237: 1.281 | G237: 247.01
A238: 202 | B238: Рожки отварные | C238: 150 | D238: 5.34 | E238: 3.68 | F238: 35.77 | G238: 204.92
B239: Сок фруктовый, виноградный | C239: 200 | D239: 0.6 | E239: - | F239: 27.6 | G239: 108
B240: Хлеб ржаной | C240: 80 | D240: 5.28 | E240: 0.96 | F240: 26.72 | G240: 136.64
B241: Итого обед | D241: =D240+D239++D238+D237+D236+D235 -> 29.935 | E241: =E240+E238+E237+E236+E235 -> 35.395 | F241: =F240+F239+F238+F237+F236+F235 -> 114.671 | G241: =G240+G239+G238+G237+G236+G235 -> 908.93
B242: ПОЛДНИК
A243: 420 | B243: Колбасное изделие,запеченное в тесте | C243: 100 | D243: 11.21 | E243: 12.23 | F243: 30.32 | G243: 276.19
A244: 385 | B244: Молоко кипяченое | C244: 200 | D244: 5.8 | E244: 6.4 | F244: 9.4 | G244: 118.4
B245: Итого полдник | D245: =SUM(D243:D244) -> 17.01 | E245: =SUM(E243:E244) -> 18.63 | F245: =SUM(F243:F244) -> 39.72 | G245: =SUM(G243:G244) -> 394.59
B246: УЖИН
A247: 240 | B247: Салат картофельный с сол. огурцами и зел. горошком | C247: 75 | D247: 1.31 | E247: 4.64 | F247: 6.94 | G247: 74.63
B248: Фрикадельки рыбные | C248: 105 | D248: 10.92 | E248: 3.45 | F248: 10.345 | G248: 114.7
A249: 126 | B249: Картофель отварной с луком | C249: 150 | D249: 4.38 | E249: 9.67 | F249: 27.03 | G249: 185.58
A250: 350 | B250: Кисель из кураги | C250: 200 | D250: 0.89 | E250: 0.06 | F250: 32.75 | G250: 154.6
B251: Батон | C251: 75 | D251: 5.63 | E251: 2.18 | F251: 38.58 | G251: 196.28
B252: Итого ужин | D252: 23.13 | E252: 20 | F252: 115.65 | G252: 725.79
B253: ВТОРОЙ УЖИН
B254: Снежок | C254: 200 | D254: 0.13 | E254: 0.4 | F254: 9.19 | G254: 50.6
B255: Вафли | C255: 10 | D255: 0.32 | E255: 0.28 | F255: 8 | G255: 35
B256: Итого второй ужин | D256: =SUM(D254:D255) -> 0.45 | E256: =SUM(E254:E255) -> 0.68 | F256: =SUM(F254:F255) -> 17.19 | G256: =SUM(G254:G255) -> 85.6
B258: Соль за целый день | C258: 5 | D258: - | E258: - | F258: - | G258: -
B260: Итого за день | D260: 72.315 | E260: 104.305 | F260: 403.65 | G260: 103.44
B262: МЕНЮ
C264: Ш Е С Т О Й Д Е Н Ь
B266: ЗАВТРАК
B267: Наименование блюда | C267: Выход | D267: Б | E267: Ж | F267: У | G267: К
A268: 224 | B268: Запеканка из творога с морковью | C268: 170 | D268: 20.99 | E268: 14.09 | F268: 33.33 | G268: 345.28
A269: 14 | B269: Масло сливочное | C269: 10 | D269: 0.08 | E269: 7.25 | F269: 0.13 | G269: 66.1
A270: 209 | B270: Яйцо вареное | C270: 1 шт | D270: 5.1 | E270: 4.6 | F270: 0.28 | G270: 62.84
A271: 378 | B271: Чай с молоком | C271: 200 | D271: 1.49 | E271: 1.62 | F271: 17.37 | G271: 85.85
B272: Батон | C272: 75 | D272: 5.63 | E272: 2.18 | F272: 38.58 | G272: 196.28
B273: Итого завтрак | D273: =D272+D271+D270+D269+D268 -> 33.29 | E273: =E272+E271+E270+E269+E268 -> 29.74 | F273: =F272+F271+F270+F269+F268 -> 89.69 | G273: =G272+G271+G270+G269+G268 -> 756.35
B274: ОБЕД
A275: 75 | B275: Икра свекольная | C275: 75 | D275: 1.13 | E275: 5.669 | F275: 7.69 | G275: 85.34
B276: Сельдь с/с | C276: 25 | D276: 4.25 | E276: 2.12 | F276: - | G276: 36.25
... 316 more rows

Sheet старше 11
B3: СОГЛАСОВАНО: | E3: УТВЕРЖДАЮ:
E5: ________________________
E6: Директор М.И. Жинько
B17: ГБУ "Автозаводский детский дом-интернат"
B28: ПРИМЕРНОЕ ЧЕТЫРНАДЦАТИДНЕВНОЕ (ДВУХНЕДЕЛЬНОЕ) МЕНЮ ДЛЯ ВОСПИТАННИКОВ С 11 ДО 18 ЛЕТ
B51: 2021 год
B53: МЕНЮ
B55: П Е Р В Ы Й Д Е Н Ь
B57: ЗАВТРАК
A58: № рец | B58: Наименование блюда | C58: Выход | D58: Б | E58: Ж | F58: У | G58: К
A59: 223 | B59: Запеканка из творога с йогуртом | C59: 180 | D59: 28.17 | E59: 16.27 | F59: 23.556 | G59: 356.03
A60: 14 | B60: Масло сливочное | C60: 10 | D60: 0.08 | E60: 7.25 | F60: 0.13 | G60: 66.1
A61: 15 | B61: Сыр | C61: 35 | D61: 8.12 | E61: 10.32 | F61: - | G61: 126
A62: 376 | B62: Кофейный напиток с молоком | C62: 200 | D62: 4 | E62: 4.07 | F62: 24.09 | G62: 152.8
B63: Батон | C63: 100 | D63: 7.5 | E63: 2.9 | F63: 51.4 | G63: 261.7
B64: Итого завтрак | D64: 47.87 | E64: 40.81 | F64: =SUM(F59:F63) -> 99.176 | G64: 962.63
B65: ОБЕД
A66: 75 | B66: Икра свекольная | C66: 100 | D66: 1.52 | E66: 8.07 | F66: 10.25 | G66: 118.34
A67: 87 | B67: Щи со сметаной на м/к бульоне | C67: 300 | D67: 1.922 | E67: 8.222 | F67: 11.22 | G67: 126.33
A68: 268 | B68: Котлета мясная | C68: 120 | D68: 15.82 | E68: 22.74 | F68: 10.9 | G68: 309.75
A69: 203 | B69: Вермишель отварная | C69: 200 | D69: 6.38 | E69: 4.41 | F69: 42.77 | G69: 245.23
B70: Сок фруктовый, яблочный | C70: 200 | D70: 1 | E70: - | F70: 18.2 | G70: 140
B71: Хлеб ржаной | C71: 120 | D71: 7.92 | E71: 1.44 | F71: 42 | G71: 224.4
B72: Итого обед | D72: =D71+D70+D69+D68+D67+D66 -> 34.562 | E72: =E71+E69+E68+E67+E66 -> 44.882 | F72: =F71+F70+F69+F68+F67+F66 -> 135.34 | G72: =G71+G70+G69+G68+G67+G66 -> 1164.05
B73: ПОЛДНИК
B74: Зефир | C74: 30 | D74: 0.24 | E74: - | F74: 23.49 | G74: 89.7
B75: Банан | C75: 200 | D75: 2.77 | E75: 0.92 | F75: 38.85 | G75: 174.83
B76: Чай без сахара | C76: 200 | D76: 0.1 | E76: 0.025 | F76: 0.02 | G76: -
B77: Итого полдник | D77: =SUM(D74:D76) -> 3.11 | E77: =SUM(E75:E76) -> 0.945 | F77: =SUM(F74:F76) -> 62.36 | G77: =SUM(G74:G76) -> 264.53
B78: УЖИН
B79: Огурец свежий | C79: 100 | D79: 1.49 | E79: 0.09 | F79: 7.69 | G79: 36
A80: 228 | B80: Рыба припущенная в молоке | C80: 125 | D80: 11.41 | E80: 14.53 | F80: 8.24 | G80: 208.83
A81: 128 | B81: Картофельное пюре | C81: 200 | D81: 4.32 | E81: 6.72 | F81: 29.37 | G81: 200.47
A82: 349 | B82: Компот из сухофруктов | C82: 200 | D82: 0.5 | E82: - | F82: 30.86 | G82: 120.34
B83: Батон | C83: 90 | D83: 6.75 | E83: 2.61 | F83: 46.26 | G83: 235.53
B84: Итого ужин | D84: =SUM(D79:D83) -> 24.47 | E84: =SUM(E79:E83) -> 23.95 | F84: =SUM(F79:F83) -> 122.42 | G84: =SUM(G79:G83) -> 801.17
B85: ВТОРОЙ УЖИН
A86: 386 | B86: Кефир 2,5% | C86: 200 | D86: 5.6 | E86: 6.41 | F86: 9.42 | G86: 116.24
B87: Гренки/сухарики | C87: 10 | D87: 0.77 | E87: 0.24 | F87: 4.9 | G87: 35.4
B88: Итого второй ужин | D88: =SUM(D86:D87) -> 6.37 | E88: =SUM(E86:E87) -> 6.65 | F88: =SUM(F86:F87) -> 14.32 | G88: =SUM(G86:G87) -> 151.64
B90: Соль за целый день | C90: 7 | D90: - | E90: - | F90: - | G90: -
B92: Итого за день | D92: 116.38 | E92: 117.24 | F92: =F88+F84+F77+F72+F64 -> 433.616 | G92: 3344.02
B95: МЕНЮ
B97: В Т О Р О Й Д Е Н Ь
B99: ЗАВТРАК
B100: Наименование блюда | C100: Выход | D100: Б | E100: Ж | F100: У | G100: К
A101: 182 | B101: Каша пшенная | C101: 250 | D101: 9.35 | E101: 12.93 | F101: 44.64 | G101: 323.13
A102: 14 | B102: Масло сливочное | C102: 10 | D102: 0.08 | E102: 7.25 | F102: 0.13 | G102: 66.1
A103: 16 | B103: Колбаса отварная | C103: 50 | D103: 6.5 | E103: 9.7 | F103: - | G103: 113.5
A104: 378 | B104: Чай с молоком | C104: 200 | D104: 1.49 | E104: 1.62 | F104: 17.37 | G104: 85.85
B105: Яблоко свежее | C105: 200 | D105: 0.74 | E105: 0.74 | F105: 18.06 | G105: 82.29
B106: Батон | C106: 100 | D106: 7.5 | E106: 2.9 | F106: 51.4 | G106: 261.7
B107: Итого завтрак | D107: 25.66 | E107: 35.14 | F107: 131.6 | G107: 932.57
B108: ОБЕД
B109: Икра кабачковая | C109: 100 | D109: 2 | E109: 9 | F109: 8.5 | G109: 122
A110: 82 | B110: Борщ со сметаной на м/к бульоне | C110: 300 | D110: 2.2 | E110: 8.183 | F110: 14.45 | G110: 139.43
A111: 231 | B111: Поджарка рыбная | C111: 165 | D111: 25.76 | E111: 22.43 | F111: 13.82 | G111: 360.22
A112: 305 | B112: Рис отварной | C112: 200 | D112: 5.12 | E112: 7.17 | F112: 51.39 | G112: 296.37
B113: Сок фруктовый, виноградный | C113: 200 | D113: 0.6 | E113: - | F113: 27.6 | G113: 108
B114: Хлеб ржаной | C114: 120 | D114: 7.92 | E114: 1.44 | F114: 42 | G114: 224.4
B115: Итого обед | D115: 43.81 | E115: 48.223 | F115: 157.76 | G115: 1250.42
B116: ПОЛДНИК
A117: 210 | B117: Омлет натуральный | C117: 110 | D117: 11.08 | E117: 17.45 | F117: 2.09 | G117: 209.18
B118: Молоко топленое | C118: 200 | D118: 5.8 | E118: 8 | F118: 9.4 | G118: 132.8
B119: Итого полдник | D119: 16.88 | E119: 25.45 | F119: 11.49 | G119: 341.98
B120: УЖИН
B121: Помидоры свежие | C121: 100 | D121: 1.49 | E121: 0.09 | F121: 7.69 | G121: 36
A122: 299 | B122: Суфле из бройлеров-цыплят | C122: 120 | D122: 18.18 | E122: 22.72 | F122: 5.24 | G122: 299.55
A123: 143 | B123: Рагу овощное | C123: 200 | D123: 3.72 | E123: 7.6 | F123: 18.62 | G123: 170.82
A124: 348 | B124: Компот из кураги | C124: 200 | D124: 0.5 | E124: - | F124: 30.86 | G124: 120.34
B125: Батон | C125: 100 | D125: 7.5 | E125: 2.9 | F125: 51.4 | G125: 261.7
B126: Итого ужин | D126: =SUM(D121:D125) -> 31.39 | E126: =SUM(E121:E125) -> 33.31 | F126: =SUM(F121:F125) -> 113.81 | G126: =SUM(G121:G125) -> 888.41
B127: ВТОРОЙ УЖИН
A128: 386 | B128: Ряженка | C128: 200 | D128: 5.6 | E128: 6.41 | F128: 11.05 | G128: 136.46
B129: Печенье | C129: 15 | D129: 1.11 | E129: 1.47 | F129: 11.16 | G129: 62.31
B130: Итого второй ужин | D130: =SUM(D128:D129) -> 6.71 | E130: =SUM(E128:E129) -> 7.88 | F130: =SUM(F128:F129) -> 22.21 | G130: =SUM(G128:G129) -> 198.77
B132: Соль за целый день | C132: 7 | D132: - | E132: - | F132: -
B134: Итого за день | D134: 124.24 | E134: 150 | F134: 436.87 | G134: 3612.15
B136: МЕНЮ
C138: Т Р Е Т И Й Д Е Н Ь
B140: ЗАВТРАК
B141: Наименование блюда | C141: Выход | D141: Б | E141: Ж | F141: У | G141: К
A142: 219 | B142: Сырники из творога со сгущенным молоком | C142: 170 | D142: 29.91 | E142: 16.68 | F142: 43.18 | G142: 458.03
A143: 14 | B143: Масло сливочное | C143: 10 | D143: 0.08 | E143: 7.25 | F143: 0.13 | G143: 66.1
A144: 209 | B144: Яйцо вареное | C144: 1 шт | D144: 5.1 | E144: 4.6 | F144: 0.28 | G144: 62.84
A145: 376 | B145: Чай с лимоном | C145: 200 | D145: 0.13 | E145: 0.02 | F145: 15.2 | G145: 62
B146: Батон | C146: 100 | D146: 7.5 | E146: 2.9 | F146: 51.4 | G146: 261.7
B147: Итого завтрак | D147: 42.72 | E147: =SUM(E142:E146) -> 31.45 | F147: =SUM(F142:F146) -> 110.19 | G147: =SUM(G142:G146) -> 910.67
B148: ОБЕД
A149: 67 | B149: Винегрет овощной | C149: 100 | D149: 1.49 | E149: 10.13 | F149: 7.78 | G149: 128.57
A150: 103 | B150: Суп картофельный с вермишелью на курином бульоне | C150: 300 | D150: 3.236 | E150: 3.38 | F150: 24.57 | G150: 145.98
A151: 288 | B151: Цыпленок отварной | C151: 100 | D151: 21.1 | E151: 13.6 | F151: - | G151: 206.8
A152: 302 | B152: Каша гречневая рассыпчатая | C152: 200 | D152: 7.77 | E152: 6.7 | F152: 5.52 | G152: 315.79
B153: Груша свежая | C153: 200 | D153: 1.66 | E153: 0.37 | F153: 14.98 | G153: 69.93
B154: Сок фруктовый, персиковый | C154: 200 | D154: 0.6 | E154: - | F154: 34 | G154: 132
B155: Хлеб ржаной | C155: 120 | D155: 7.92 | E155: 1.44 | F155: 42 | G155: 224.4
B156: Итого обед | D156: 43.78 | E156: 35.62 | F156: 128.85 | G156: 1223.47
B157: ПОЛДНИК
B158: Желе из апельсинов | C158: 100 | D158: 2.65 | E158: 0.02 | F158: 12.28 | G158: 60.4
B159: Вафли | C159: 25 | D159: 0.8 | E159: 0.7 | F159: 20 | G159: 87.5
B160: Чудо-молоко | C160: 200 | D160: 2.8 | E160: 2 | F160: 7.5 | G160: 67
B161: Итого полдник | D161: 6.25 | E161: 2.72 | F161: 39.78 | G161: 214.9
B162: УЖИН
B163: Сельдь с/с | C163: 25 | D163: 4.25 | E163: 2.12 | F163: - | G163: 36.25
A164: 75 | B164: Икра морковная | C164: 100 | D164: 1.4 | E164: 8.09 | F164: 9.37 | G164: 112.34
A165: 268 | B165: Биточки мясные | C165: 120 | D165: 15.82 | E165: 22.74 | F165: 10.9 | G165: 309.75
A166: 125 | B166: Картофель отварной | C166: 200 | D166: 4.06 | E166: 5.88 | F166: 32.69 | G166: 206.27
A167: 348 | B167: Компот из чернослива | C167: 200 | D167: 0.46 | E167: - | F167: 31.68 | G167: 124.2
B168: Батон | C168: 80 | D168: 6 | E168: 2.32 | F168: 41.12 | G168: 209.36
B169: Итого ужин | D169: =SUM(D163:D168) -> 31.99 | E169: =SUM(E163:E168) -> 41.15 | F169: =SUM(F164:F168) -> 125.76 | G169: =SUM(G163:G168) -> 998.17
B170: ВТОРОЙ УЖИН
B171: Йогурт | C171: 200 | D171: 5.6 | E171: 6.41 | F171: 9.41 | G171: 116.22
B172: Батон | C172: 20 | D172: 1.5 | E172: 0.58 | F172: 10.28 | G172: 52.34
B173: Итого второй ужин | D173: =SUM(D171:D172) -> 7.1 | E173: =SUM(E171:E172) -> 6.99 | F173: =SUM(F171:F172) -> 19.69 | G173: =SUM(G171:G172) -> 168.56
B175: Соль за целый день | C175: 7 | D175: - | E175: - | F175: - | G175: -
B177: Итого за день | D177: 132.24 | E177: 115.78 | F177: 425.93 | G177: 3504.76
B179: МЕНЮ
B181: Ч Е Т В Е Р Т Ы Й Д Е Н Ь
B183: ЗАВТРАК
B184: Наименование блюда | C184: Выход | D184: Б | E184: Ж | F184: У | G184: К
A185: 120 | B185: Суп молочный с крупой | C185: 250 | D185: 3.71 | E185: 4.47 | F185: 7.68 | G185: 89
A186: 14 | B186: Масло сливочное | C186: 10 | D186: 0.08 | E186: 7.25 | F186: 0.13 | G186: 66.1
A187: 16 | B187: Колбаса отварная | C187: 50 | D187: 6.5 | E187: 9.7 | F187: - | G187: 113.5
A188: 382 | B188: Какао с молоком | C188: 200 | D188: 3.76 | E188: 3.9 | F188: 25.81 | G188: 149
B189: Апельсин | C189: 200 | D189: 0.74 | E189: 0.55 | F189: 19.06 | G189: 84.4
B190: Батон | C190: 100 | D190: 7.5 | E190: 2.9 | F190: 51.4 | G190: 261.7
B191: Итого завтрак | D191: 22.29 | E191: 28.77 | F191: 104.08 | G191: 763.7
B192: ОБЕД
B193: Икра кабачковая | C193: 75 | D193: 1.5 | E193: 6.75 | F193: 6.37 | G193: 91.5
A194: 101 | B194: Суп картофельный с рыбными фрикадельками | C194: 300 | D194: 11.01 | E194: 8.26 | F194: 18.78 | G194: 209.56
A195: 284 | B195: Запеканка картофельная с мясом | C195: 250 | D195: 18.63 | E195: 26.49 | F195: 42.3 | G195: 487.07
B196: Сок фруктовый, яблочный | C196: 200 | D196: 1 | E196: - | F196: 18.2 | G196: 140
B197: Хлеб ржаной | C197: 120 | D197: 7.92 | E197: 1.44 | F197: 42 | G197: 224.4
B198: Итого обед | D198: 40.06 | E198: 42.94 | F198: 127.65 | G198: 1152.53
B199: ПОЛДНИК
A200: 466 | B200: Пирожок с рисом и яйцом | C200: 75 | D200: 5.555 | E200: 4.75 | F200: 31.43 | G200: 190.62
A201: 350 | B201: Кисель из клюквы | C201: 200 | D201: 0.169 | E201: 0.1 | F201: 29.9 | G201: 117.4
B202: Итого полдник | D202: =SUM(D200:D201) -> 5.724 | E202: =SUM(E200:E201) -> 4.85 | F202: =SUM(F200:F201) -> 61.33 | G202: =SUM(G200:G201) -> 308.02
B203: УЖИН
B204: Огурец свежий | C204: 100 | D204: 1.49 | E204: 0.09 | F204: 7.69 | G204: 36
A205: 251 | B205: Поджарка мясная | C205: 65 | D205: 15.09 | E205: 17.72 | F205: 3.03 | G205: 228.13
A206: 139 | B206: Капуста тушеная | C206: 200 | D206: 4.42 | E206: 6.83 | F206: 19.57 | G206: 98.71
A207: 348 | B207: Компот из изюма | C207: 200 | D207: 0.5 | E207: - | F207: 30.86 | G207: 120.34
B208: Батон | C208: 100 | D208: 7.5 | E208: 2.9 | F208: 51.4 | G208: 261.7
B209: Итого ужин | D209: =SUM(D204:D208) -> 29 | E209: =SUM(E204:E208) -> 27.54 | F209: =SUM(F204:F208) -> 112.55 | G209: =SUM(G204:G208) -> 744.88
B210: ВТОРОЙ УЖИН
A211: 386 | B211: Простокваша 2,5% | C211: 200 | D211: 5.8 | E211: 5 | F211: 7.95 | G211: 98.21
B212: Пряники | C212: 15 | D212: 0.95 | E212: 0.32 | F212: 11.34 | G212: 51.97
B213: Итого второй ужин | D213: =SUM(D211:D212) -> 6.75 | E213: =SUM(E211:E212) -> 5.32 | F213: =SUM(F211:F212) -> 19.29 | G213: =SUM(G211:G212) -> 150.18
B215: Соль за целый день | C215: 7 | D215: - | E215: - | F215: - | G215: -
B217: Итого за день | D217: 103.82 | E217: =E213+E209+E202+E198+E191 -> 109.42 | F217: =F213+F209+F202+F198+F191 -> 424.9 | G217: =G213+G209+G202+G198+G191 -> 3119.31
B219: МЕНЮ
B221: П Я Т Ы Й Д Е Н Ь
B223: ЗАВТРАК
B224: Наименование блюда | C224: Выход | D224: Б | E224: Ж | F224: У | G224: К
A225: 181 | B225: Каша манная | C225: 250 | D225: 7.69 | E225: 11.85 | F225: 37.12 | G225: 343.5
A226: 14 | B226: Масло сливочное | C226: 10 | D226: 0.08 | E226: 7.25 | F226: 0.13 | G226: 66.1
A227: 15 | B227: Сыр | C227: 35 | D227: 8.12 | E227: 10.32 | F227: - | G227: 126
A228: 376 | B228: Кофейный напиток с молоком | C228: 200 | D228: 4 | E228: 4.07 | F228: 24.09 | G228: 152.8
B229: Яблоко свежее | C229: 200 | D229: 0.74 | E229: 0.74 | F229: 18.06 | G229: 82.29
B230: Батон | C230: 100 | D230: 7.5 | E230: 2.9 | F230: 51.4 | G230: 261.7
B231: Итого завтрак | D231: 28.13 | E231: 37.13 | F231: 130.8 | G231: 975.14
B232: ОБЕД
A233: 47 | B233: Салат из квашенной капусты | C233: 100 | D233: 1.54 | E233: 5 | F233: 7.8 | G233: 83.8
A234: 96 | B234: Рассольник "Ленинградский" со сметаной на м/к бульоне | C234: 300 | D234: 2.93 | E234: 8.49 | F234: 20.83 | G234: 174.24
A235: 260 | B235: Бефстроганов из отв. говядины | C235: 100 | D235: 14.44 | E235: 12.25 | F235: 3.78 | G235: 181
A236: 202 | B236: Рожки отварные | C236: 200 | D236: 6.39 | E236: 4.41 | F236: 42.78 | G236: 245.23
B237: Сок фруктовый, виноградный | C237: 200 | D237: 0.6 | E237: - | F237: 27.6 | G237: 108
B238: Хлеб ржаной | C238: 120 | D238: 7.92 | E238: 1.44 | F238: 42 | G238: 224.4
B239: Итого обед | D239: 33.82 | E239: 31.6 | F239: 144.8 | G239: 1016.67
B240: ПОЛДНИК
A241: 420 | B241: Колбасное изделие,запеченное в тесте | C241: 100 | D241: 11.21 | E241: 12.23 | F241: 30.32 | G241: 276.19
A242: 385 | B242: Молоко кипяченое | C242: 200 | D242: 5.8 | E242: 6.4 | F242: 9.4 | G242: 118.4
B243: Итого полдник | D243: =SUM(D241:D242) -> 17.01 | E243: =SUM(E241:E242) -> 18.63 | F243: =SUM(F241:F242) -> 39.72 | G243: =SUM(G241:G242) -> 394.59
B244: УЖИН
A245: 240 | B245: Салат картофельный с солеными огурцами и репчатым луком | C245: 100 | D245: 1.75 | E245: 6.18 | F245: 9.25 | G245: 99.5
B246: Фрикадельки рыбные | C246: 130 | D246: 14.48 | E246: 4.1 | F246: 12.775 | G246: 138.4
A247: 126 | B247: Картофель отварной с луком | C247: 200 | D247: 5.84 | E247: 12.89 | F247: 36.04 | G247: 247.44
A248: 350 | B248: Кисель из кураги | C248: 200 | D248: 0.89 | E248: 0.06 | F248: 32.75 | G248: 154.6
B249: Батон | C249: 100 | D249: 7.5 | E249: 2.9 | F249: 51.4 | G249: 261.7
B250: Итого ужин | D250: 30.46 | E250: 26.13 | F250: 142.22 | G250: 901.64
B251: ВТОРОЙ УЖИН
B252: Снежок | C252: 200 | D252: 0.13 | E252: 0.4 | F252: 9.19 | G252: 50.6
B253: Вафли | C253: 15 | D253: 0.48 | E253: 0.42 | F253: 12 | G253: 52.5
B254: Итого второй ужин | D254: =SUM(D252:D253) -> 0.61 | E254: =SUM(E252:E253) -> 0.82 | F254: =SUM(F252:F253) -> 21.19 | G254: =SUM(G252:G253) -> 103.1
B256: Соль за целый день | C256: 7 | D256: - | E256: - | F256: - | G256: -
B258: Итого за день | D258: 110.03 | E258: 114.3 | F258: 478.73 | G258: 3391.14
B261: МЕНЮ
C263: Ш Е С Т О Й Д Е Н Ь
B265: ЗАВТРАК
B266: Наименование блюда | C266: Выход | D266: Б | E266: Ж | F266: У | G266: К
A267: 224 | B267: Запеканка из творога с морковью | C267: 220 | D267: 27.8 | E267: 18.77 | F267: 40.97 | G267: 444.37
A268: 14 | B268: Масло сливочное | C268: 10 | D268: 0.08 | E268: 7.25 | F268: 0.13 | G268: 66.1
A269: 209 | B269: Яйцо вареное | C269: 1 шт | D269: 5.1 | E269: 4.6 | F269: 0.28 | G269: 62.84
A270: 378 | B270: Чай с молоком | C270: 200 | D270: 1.49 | E270: 1.62 | F270: 17.37 | G270: 85.85
B271: Батон | C271: 100 | D271: 7.5 | E271: 2.9 | F271: 51.4 | G271: 261.7
B272: Итого завтрак | D272: =D271+D270+D269+D268+D267 -> 41.97 | E272: =E271+E270+E269+E268+E267 -> 35.14 | F272: =F271+F270+F269+F268+F267 -> 110.15 | G272: =G271+G270+G269+G268+G267 -> 920.86
B273: ОБЕД
A274: 75 | B274: Икра свекольная | C274: 100 | D274: 1.52 | E274: 8.07 | F274: 10.25 | G274: 118.34
B275: Сельдь с/с | C275: 25 | D275: 4.25 | E275: 2.12 | F275: - | G275: 36.25
... 315 more rows
